[Event "Titled Tuesday Blitz May 30 Early 2023"]
[White "Toncheva, Nadya"]
[Black "Souleidis, Georgios"]
[WhiteFideId "2924056"]
[BlackFideId "4206827"]
[WhiteElo "2101"]
[BlackElo "2401"]
[Result "0-1"]
[Round "08"]
[TimeControl "180+2"]
[Date "2023.05.30"]
[WhiteClock "0:00:02"]
[BlackClock "0:00:29"]

1. e4 {[%clk 0:03:00]}  c5 {[%clk 0:03:00]} 2. Nf3 {[%clk 0:03:01]}  e6 {[%clk 0:03:00]} 3. c3 {[%clk 0:03:01]}  d5 {[%clk 0:03:00]} 4. exd5 {[%clk 0:03:02]}  exd5 {[%clk 0:03:01]} 5. d4 {[%clk 0:03:02]}  Nf6 {[%clk 0:03:02]} 6. Bb5+ {[%clk 0:03:00]}  Bd7 {[%clk 0:03:02]} 7. Qe2+ {[%clk 0:03:00]}  Qe7 {[%clk 0:03:02]} 8. Qxe7+ {[%clk 0:02:57]}  Bxe7 {[%clk 0:03:02]} 9. Bd3 {[%clk 0:02:55]}  c4 {[%clk 0:03:02]} 10. Bc2 {[%clk 0:02:54]}  Nc6 {[%clk 0:03:02]} 11. O-O {[%clk 0:02:55]}  O-O {[%clk 0:03:02]} 12. b3 {[%clk 0:02:54]}  cxb3 {[%clk 0:02:53]} 13. axb3 {[%clk 0:02:54]}  Bd6 {[%clk 0:02:44]} 14. Bg5 {[%clk 0:02:50]}  Ne4 {[%clk 0:02:40]} 15. Bxe4 {[%clk 0:02:46]}  dxe4 {[%clk 0:02:40]} 16. Nfd2 {[%clk 0:02:45]}  f5 {[%clk 0:02:36]} 17. Na3 {[%clk 0:02:41]}  a6 {[%clk 0:02:35]} 18. Nac4 {[%clk 0:02:41]}  Bc7 {[%clk 0:02:35]} 19. d5 {[%clk 0:02:30]}  Ne5 {[%clk 0:02:32]} 20. d6 {[%clk 0:02:24]}  Nxc4 {[%clk 0:02:32]} 21. Nxc4 {[%clk 0:02:25]}  Bd8 {[%clk 0:02:28]} 22. Bf4 {[%clk 0:02:09]}  Be6 {[%clk 0:02:08]} 23. Nd2 {[%clk 0:01:50]}  Bf6 {[%clk 0:02:02]} 24. Rac1 {[%clk 0:01:49]}  g5 {[%clk 0:02:00]} 25. Be3 {[%clk 0:01:50]}  Rfd8 {[%clk 0:01:47]} 26. Bc5 {[%clk 0:01:49]}  Rac8 {[%clk 0:01:44]} 27. Bb4 {[%clk 0:01:39]}  a5 {[%clk 0:01:35]} 28. Bxa5 {[%clk 0:01:33]}  Rxd6 {[%clk 0:01:35]} 29. Rfd1 {[%clk 0:01:32]}  Rd3 {[%clk 0:01:29]} 30. c4 {[%clk 0:01:29]}  Ra8 {[%clk 0:01:21]} 31. b4 {[%clk 0:01:20]}  Rc8 {[%clk 0:01:03]} 32. c5 {[%clk 0:01:19]}  g4 {[%clk 0:00:47]} 33. Nf1 {[%clk 0:01:18]}  Bg5 {[%clk 0:00:45]} 34. Ra1 {[%clk 0:01:12]}  Bc4 {[%clk 0:00:42]} 35. Ng3 {[%clk 0:01:07]}  Be6 {[%clk 0:00:40]} 36. Rxd3 {[%clk 0:01:05]}  exd3 {[%clk 0:00:40]} 37. Rd1 {[%clk 0:01:05]}  d2 {[%clk 0:00:40]} 38. Nf1 {[%clk 0:00:43]}  Bb3 {[%clk 0:00:40]} 39. Rxd2 {[%clk 0:00:44]}  Bxd2 {[%clk 0:00:40]} 40. Nxd2 {[%clk 0:00:45]}  Bd5 {[%clk 0:00:41]} 41. Nf1 {[%clk 0:00:41]}  f4 {[%clk 0:00:41]} 42. Nd2 {[%clk 0:00:36]}  Kf7 {[%clk 0:00:39]} 43. Kf1 {[%clk 0:00:36]}  Ke6 {[%clk 0:00:39]} 44. Ke2 {[%clk 0:00:36]}  Kf5 {[%clk 0:00:39]} 45. Kd3 {[%clk 0:00:35]}  Bxg2 {[%clk 0:00:38]} 46. Kd4 {[%clk 0:00:30]}  Rg8 {[%clk 0:00:37]} 47. Nc4 {[%clk 0:00:29]}  Ke6 {[%clk 0:00:33]} 48. b5 {[%clk 0:00:25]}  h5 {[%clk 0:00:33]} 49. Ne5 {[%clk 0:00:23]}  h4 {[%clk 0:00:29]} 50. c6 {[%clk 0:00:21]}  bxc6 {[%clk 0:00:30]} 51. bxc6 {[%clk 0:00:21]}  g3 {[%clk 0:00:29]} 52. fxg3 {[%clk 0:00:20]}  fxg3 {[%clk 0:00:29]} 53. hxg3 {[%clk 0:00:02]}  h3 {[%clk 0:00:29]} 0-1


[Site "https://www.chess.com"]

[Event "Titled Tuesday Blitz May 30 Early 2023"]
[White "Fernandez Garcia, Gumersindo"]
[Black "Makaraci, Tunahan"]
[WhiteFideId "24516740"]
[BlackFideId "6356559"]
[WhiteElo "2093"]
[BlackElo "2160"]
[Result "1-0"]
[Round "08"]
[TimeControl "180+2"]
[Date "2023.05.30"]
[WhiteClock "0:01:36"]
[BlackClock "0:00:17"]

1. e4 {[%clk 0:03:00]}  c5 {[%clk 0:02:59]} 2. c3 {[%clk 0:02:58]}  d5 {[%clk 0:02:57]} 3. exd5 {[%clk 0:02:58]}  Qxd5 {[%clk 0:02:58]} 4. Nf3 {[%clk 0:02:59]}  g6 {[%clk 0:02:58]} 5. d4 {[%clk 0:03:00]}  Bg7 {[%clk 0:02:57]} 6. Be2 {[%clk 0:03:00]}  Nc6 {[%clk 0:02:55]} 7. O-O {[%clk 0:03:00]}  Nf6 {[%clk 0:02:51]} 8. c4 {[%clk 0:02:58]}  Qd8 {[%clk 0:02:43]} 9. d5 {[%clk 0:02:58]}  Nb8 {[%clk 0:02:41]} 10. Nc3 {[%clk 0:02:58]}  O-O {[%clk 0:02:40]} 11. Bg5 {[%clk 0:02:55]}  Bg4 {[%clk 0:02:40]} 12. h3 {[%clk 0:02:55]}  Bxf3 {[%clk 0:02:40]} 13. Bxf3 {[%clk 0:02:56]}  Nbd7 {[%clk 0:02:40]} 14. Re1 {[%clk 0:02:55]}  Re8 {[%clk 0:02:40]} 15. Qd2 {[%clk 0:02:53]}  a6 {[%clk 0:02:37]} 16. a4 {[%clk 0:02:50]}  Qc7 {[%clk 0:02:34]} 17. Bf4 {[%clk 0:02:45]}  Qa5 {[%clk 0:02:32]} 18. Re2 {[%clk 0:02:45]}  Nf8 {[%clk 0:02:23]} 19. Rae1 {[%clk 0:02:43]}  e6 {[%clk 0:02:21]} 20. Bg5 {[%clk 0:02:29]}  exd5 {[%clk 0:02:07]} 21. Nxd5 {[%clk 0:02:28]}  Qxd2 {[%clk 0:02:06]} 22. Bxd2 {[%clk 0:02:26]}  Rxe2 {[%clk 0:02:03]} 23. Rxe2 {[%clk 0:02:26]}  Ne6 {[%clk 0:01:59]} 24. Nxf6+ {[%clk 0:02:19]}  Bxf6 {[%clk 0:01:59]} 25. Bxb7 {[%clk 0:02:18]}  Rb8 {[%clk 0:01:59]} 26. Bd5 {[%clk 0:02:12]}  Nd4 {[%clk 0:01:51]} 27. Re1 {[%clk 0:02:07]}  Rxb2 {[%clk 0:01:50]} 28. Bh6 {[%clk 0:02:01]}  Re2 {[%clk 0:01:40]} 29. Rb1 {[%clk 0:01:59]}  Re8 {[%clk 0:01:36]} 30. Rb7 {[%clk 0:01:54]}  Be7 {[%clk 0:01:05]} 31. g3 {[%clk 0:01:45]}  Nf5 {[%clk 0:00:39]} 32. Bf4 {[%clk 0:01:43]}  Kg7 {[%clk 0:00:34]} 33. h4 {[%clk 0:01:43]}  h5 {[%clk 0:00:34]} 34. Kg2 {[%clk 0:01:42]}  Rf8 {[%clk 0:00:29]} 35. Ra7 {[%clk 0:01:41]}  Bd6 {[%clk 0:00:25]} 36. Bxd6 {[%clk 0:01:40]}  Nxd6 {[%clk 0:00:26]} 37. Rxa6 {[%clk 0:01:40]}  Nf5 {[%clk 0:00:26]} 38. Ra7 {[%clk 0:01:40]}  Nd4 {[%clk 0:00:24]} 39. a5 {[%clk 0:01:38]}  Kf6 {[%clk 0:00:23]} 40. a6 {[%clk 0:01:38]}  Ke5 {[%clk 0:00:17]} 41. Rxf7 {[%clk 0:01:36]} 1-0


[Site "https://www.chess.com"]

[Event "Titled Tuesday Blitz May 30 Early 2023"]
[White "Balla, Tamas-Kristof"]
[Black "Girya, Olga"]
[WhiteFideId "1208497"]
[BlackFideId "4195752"]
[WhiteElo "2334"]
[BlackElo "2263"]
[Result "1-0"]
[Round "08"]
[TimeControl "180+2"]
[Date "2023.05.30"]
[WhiteClock "0:00:19"]
[BlackClock "0:00:00"]

1. e4 {[%clk 0:03:00]}  e5 {[%clk 0:02:59]} 2. Nf3 {[%clk 0:02:56]}  Nc6 {[%clk 0:03:00]} 3. Bc4 {[%clk 0:02:48]}  Bc5 {[%clk 0:02:59]} 4. b4 {[%clk 0:02:46]}  Bxb4 {[%clk 0:02:58]} 5. c3 {[%clk 0:02:46]}  Ba5 {[%clk 0:02:58]} 6. d4 {[%clk 0:02:47]}  d6 {[%clk 0:02:57]} 7. O-O {[%clk 0:02:41]}  Bg4 {[%clk 0:02:33]} 8. Qb3 {[%clk 0:02:11]}  Bxf3 {[%clk 0:02:33]} 9. Bxf7+ {[%clk 0:02:05]}  Kf8 {[%clk 0:02:32]} 10. gxf3 {[%clk 0:02:05]}  Bb6 {[%clk 0:02:28]} 11. Bxg8 {[%clk 0:01:30]}  Rxg8 {[%clk 0:02:28]} 12. d5 {[%clk 0:01:23]}  Nb8 {[%clk 0:02:18]} 13. Kh1 {[%clk 0:01:21]}  Qf6 {[%clk 0:02:10]} 14. c4 {[%clk 0:01:20]}  Bd4 {[%clk 0:02:06]} 15. Qxb7 {[%clk 0:00:58]}  Qxf3+ {[%clk 0:02:04]} 16. Kg1 {[%clk 0:00:58]}  Qg4+ {[%clk 0:02:04]} 17. Kh1 {[%clk 0:00:58]}  Qf3+ {[%clk 0:01:38]} 18. Kg1 {[%clk 0:00:58]}  Qg4+ {[%clk 0:00:33]} 19. Kh1 {[%clk 0:00:58]}  Bxa1 {[%clk 0:00:33]} 20. Qxa8 {[%clk 0:00:56]}  Qf3+ {[%clk 0:00:31]} 21. Kg1 {[%clk 0:00:56]}  Ke7 {[%clk 0:00:29]} 22. Qb7 {[%clk 0:00:49]}  Qg4+ {[%clk 0:00:20]} 23. Kh1 {[%clk 0:00:49]}  Qf3+ {[%clk 0:00:10]} 24. Kg1 {[%clk 0:00:49]}  Kd7 {[%clk 0:00:07]} 25. Be3 {[%clk 0:00:41]}  Qg4+ {[%clk 0:00:05]} 26. Kh1 {[%clk 0:00:41]}  Qf3+ {[%clk 0:00:05]} 27. Kg1 {[%clk 0:00:41]}  Qxe4 {[%clk 0:00:05]} 28. Nd2 {[%clk 0:00:37]}  Qg6+ {[%clk 0:00:05]} 29. Kh1 {[%clk 0:00:37]}  Bc3 {[%clk 0:00:05]} 30. Qb5+ {[%clk 0:00:34]}  Kc8 {[%clk 0:00:04]} 31. Rb1 {[%clk 0:00:29]}  Bxd2 {[%clk 0:00:02]} 32. Qxb8+ {[%clk 0:00:25]}  Kd7 {[%clk 0:00:02]} 33. Qb5+ {[%clk 0:00:16]}  Ke7 {[%clk 0:00:02]} 34. Bxd2 {[%clk 0:00:17]}  Qe4+ {[%clk 0:00:02]} 35. Kg1 {[%clk 0:00:18]}  Qg6+ {[%clk 0:00:03]} 36. Kf1 {[%clk 0:00:18]}  Qd3+ {[%clk 0:00:03]} 37. Ke1 {[%clk 0:00:19]}  Qe4+ {[%clk 0:00:00]} 38. Kd1 {[%clk 0:00:19]} 1-0


[Site "https://www.chess.com"]

[Event "Titled Tuesday Blitz May 30 Early 2023"]
[White "Ambartsumova, Karina"]
[Black "Begunov, Konstantin"]
[WhiteFideId "4166299"]
[BlackFideId "4118510"]
[WhiteElo "2240"]
[BlackElo "2050"]
[Result "0-1"]
[Round "08"]
[TimeControl "180+2"]
[Date "2023.05.30"]
[WhiteClock "0:00:00"]
[BlackClock "0:00:08"]

1. e4 {[%clk 0:03:00]}  c5 {[%clk 0:02:58]} 2. Nf3 {[%clk 0:03:00]}  d6 {[%clk 0:02:58]} 3. Bb5+ {[%clk 0:03:00]}  Bd7 {[%clk 0:02:58]} 4. Bxd7+ {[%clk 0:03:00]}  Qxd7 {[%clk 0:02:58]} 5. Qe2 {[%clk 0:03:00]}  Nf6 {[%clk 0:02:58]} 6. c3 {[%clk 0:03:01]}  Nc6 {[%clk 0:02:58]} 7. d4 {[%clk 0:03:01]}  cxd4 {[%clk 0:02:59]} 8. cxd4 {[%clk 0:03:02]}  e6 {[%clk 0:02:59]} 9. Nc3 {[%clk 0:03:00]}  Be7 {[%clk 0:02:59]} 10. O-O {[%clk 0:03:00]}  O-O {[%clk 0:02:58]} 11. Bd2 {[%clk 0:02:51]}  Rfc8 {[%clk 0:02:57]} 12. e5 {[%clk 0:02:42]}  dxe5 {[%clk 0:02:51]} 13. dxe5 {[%clk 0:02:40]}  Nd5 {[%clk 0:02:50]} 14. Rad1 {[%clk 0:02:34]}  Nxc3 {[%clk 0:02:42]} 15. Bxc3 {[%clk 0:02:35]}  Qc7 {[%clk 0:02:41]} 16. h4 {[%clk 0:02:16]}  Rd8 {[%clk 0:02:39]} 17. h5 {[%clk 0:02:16]}  h6 {[%clk 0:02:36]} 18. Qe4 {[%clk 0:02:04]}  Rxd1 {[%clk 0:02:33]} 19. Rxd1 {[%clk 0:02:05]}  Rd8 {[%clk 0:02:32]} 20. Rc1 {[%clk 0:01:47]}  Qd7 {[%clk 0:02:26]} 21. a4 {[%clk 0:01:21]}  Qd3 {[%clk 0:02:18]} 22. Qg4 {[%clk 0:01:09]}  Qe2 {[%clk 0:02:06]} 23. Re1 {[%clk 0:00:55]}  Rd1 {[%clk 0:02:01]} 24. Rxd1 {[%clk 0:00:55]}  Qxd1+ {[%clk 0:02:02]} 25. Kh2 {[%clk 0:00:56]}  Bc5 {[%clk 0:01:52]} 26. Qh4 {[%clk 0:00:32]}  Qe2 {[%clk 0:01:39]} 27. Nd4 {[%clk 0:00:26]}  Qxe5+ {[%clk 0:00:57]} 28. f4 {[%clk 0:00:26]}  Qe3 {[%clk 0:00:45]} 29. Nf3 {[%clk 0:00:18]}  Bd6 {[%clk 0:00:34]} 30. Bd2 {[%clk 0:00:17]}  Qe4 {[%clk 0:00:30]} 31. Qg4 {[%clk 0:00:14]}  Qxa4 {[%clk 0:00:25]} 32. g3 {[%clk 0:00:07]}  Qc2 {[%clk 0:00:22]} 33. Kh3 {[%clk 0:00:08]}  Ne7 {[%clk 0:00:20]} 34. Bc3 {[%clk 0:00:07]}  Nf5 {[%clk 0:00:19]} 35. Nd4 {[%clk 0:00:07]}  Qe4 {[%clk 0:00:17]} 36. Qf3 {[%clk 0:00:04]}  Qxf3 {[%clk 0:00:15]} 37. Nxf3 {[%clk 0:00:05]}  Kf8 {[%clk 0:00:14]} 38. Kg2 {[%clk 0:00:04]}  Be7 {[%clk 0:00:13]} 39. Nd2 {[%clk 0:00:05]}  Bf6 {[%clk 0:00:13]} 40. Bb4+ {[%clk 0:00:05]}  Ke8 {[%clk 0:00:13]} 41. b3 {[%clk 0:00:05]}  Ne3+ {[%clk 0:00:12]} 42. Kf3 {[%clk 0:00:05]}  Nd5 {[%clk 0:00:13]} 43. Ba3 {[%clk 0:00:04]}  Kd7 {[%clk 0:00:12]} 44. Ne4 {[%clk 0:00:04]}  Be7 {[%clk 0:00:12]} 45. Bb2 {[%clk 0:00:04]}  b5 {[%clk 0:00:11]} 46. Bxg7 {[%clk 0:00:03]}  f5 {[%clk 0:00:07]} 47. Nd2 {[%clk 0:00:03]}  Nf6 {[%clk 0:00:07]} 48. Bxh6 {[%clk 0:00:02]}  Nxh5 {[%clk 0:00:07]} 49. g4 {[%clk 0:00:03]}  fxg4+ {[%clk 0:00:07]} 50. Kxg4 {[%clk 0:00:04]}  Nf6+ {[%clk 0:00:07]} 51. Kf3 {[%clk 0:00:04]}  Nd5 {[%clk 0:00:07]} 52. Bg7 {[%clk 0:00:04]}  Kc6 {[%clk 0:00:06]} 53. Ke4 {[%clk 0:00:04]}  Kc5 {[%clk 0:00:06]} 54. Ke5 {[%clk 0:00:04]}  Nc7 {[%clk 0:00:06]} 55. Ke4 {[%clk 0:00:02]}  Bd6 {[%clk 0:00:06]} 56. Bc3 {[%clk 0:00:02]}  a6 {[%clk 0:00:06]} 57. Bb2 {[%clk 0:00:02]}  Nd5 {[%clk 0:00:06]} 58. Be5 {[%clk 0:00:02]}  Bxe5 {[%clk 0:00:06]} 59. Kxe5 {[%clk 0:00:03]}  Nc7 {[%clk 0:00:06]} 60. Ke4 {[%clk 0:00:03]}  Kb4 {[%clk 0:00:06]} 61. Kd4 {[%clk 0:00:04]}  a5 {[%clk 0:00:05]} 62. Ne4 {[%clk 0:00:04]}  Nd5 {[%clk 0:00:04]} 63. f5 {[%clk 0:00:03]}  exf5 {[%clk 0:00:04]} 64. Nd6 {[%clk 0:00:04]}  Nc7 {[%clk 0:00:03]} 65. Nxf5 {[%clk 0:00:04]}  Kxb3 {[%clk 0:00:04]} 66. Kc5 {[%clk 0:00:04]}  a4 {[%clk 0:00:04]} 67. Nd4+ {[%clk 0:00:05]}  Kb2 {[%clk 0:00:04]} 68. Kb4 {[%clk 0:00:05]}  a3 {[%clk 0:00:05]} 69. Ne2 {[%clk 0:00:04]}  a2 {[%clk 0:00:06]} 70. Nf4 {[%clk 0:00:03]}  a1=Q {[%clk 0:00:06]} 71. Nd3+ {[%clk 0:00:04]}  Kb1 {[%clk 0:00:06]} 72. Nc5 {[%clk 0:00:03]}  Qb2+ {[%clk 0:00:06]} 73. Ka5 {[%clk 0:00:04]}  Qc3+ {[%clk 0:00:06]} 74. Kb6 {[%clk 0:00:05]}  b4 {[%clk 0:00:07]} 75. Na4 {[%clk 0:00:04]}  Qd4+ {[%clk 0:00:07]} 76. Ka5 {[%clk 0:00:05]}  b3 {[%clk 0:00:08]} 77. Nb6 {[%clk 0:00:00]}  b2 {[%clk 0:00:08]} 0-1


[Site "https://www.chess.com"]

[Event "Titled Tuesday Blitz May 30 Early 2023"]
[White "Hajiyev, Kanan"]
[Black "Budrewicz, Krzysztof"]
[WhiteFideId "13404148"]
[BlackFideId "1127950"]
[WhiteElo "2103"]
[BlackElo "2230"]
[Result "1/2-1/2"]
[Round "08"]
[TimeControl "180+2"]
[Date "2023.05.30"]
[WhiteClock "0:00:09"]
[BlackClock "0:00:23"]

1. c4 {[%clk 0:02:50]}  g6 {[%clk 0:02:59]} 2. b3 {[%clk 0:02:50]}  Bg7 {[%clk 0:02:59]} 3. Nc3 {[%clk 0:02:51]}  Nf6 {[%clk 0:02:59]} 4. Bb2 {[%clk 0:02:52]}  O-O {[%clk 0:03:00]} 5. g3 {[%clk 0:02:51]}  c5 {[%clk 0:03:00]} 6. Bg2 {[%clk 0:02:52]}  Nc6 {[%clk 0:03:01]} 7. Nf3 {[%clk 0:02:52]}  d6 {[%clk 0:03:01]} 8. O-O {[%clk 0:02:52]}  Bg4 {[%clk 0:03:00]} 9. h3 {[%clk 0:02:50]}  Bd7 {[%clk 0:03:00]} 10. d4 {[%clk 0:02:48]}  a6 {[%clk 0:02:56]} 11. d5 {[%clk 0:02:45]}  Na5 {[%clk 0:02:56]} 12. e4 {[%clk 0:02:39]}  Ne8 {[%clk 0:02:45]} 13. e5 {[%clk 0:02:29]}  b5 {[%clk 0:02:38]} 14. e6 {[%clk 0:02:18]}  fxe6 {[%clk 0:02:25]} 15. dxe6 {[%clk 0:02:19]}  Bxe6 {[%clk 0:02:25]} 16. Ng5 {[%clk 0:02:14]}  Bd7 {[%clk 0:02:22]} 17. Qd5+ {[%clk 0:02:00]}  e6 {[%clk 0:02:23]} 18. Nxe6 {[%clk 0:01:36]}  Bxe6 {[%clk 0:02:22]} 19. Qxe6+ {[%clk 0:01:37]}  Kh8 {[%clk 0:02:22]} 20. Bxa8 {[%clk 0:01:29]}  Qxa8 {[%clk 0:02:22]} 21. cxb5 {[%clk 0:01:26]}  axb5 {[%clk 0:02:22]} 22. Rad1 {[%clk 0:01:13]}  c4 {[%clk 0:02:18]} 23. b4 {[%clk 0:01:04]}  Nc6 {[%clk 0:02:18]} 24. a3 {[%clk 0:01:02]}  Ne5 {[%clk 0:02:16]} 25. Qd5 {[%clk 0:00:51]}  Qc8 {[%clk 0:02:12]} 26. Kg2 {[%clk 0:00:44]}  Nd3 {[%clk 0:02:07]} 27. Rxd3 {[%clk 0:00:43]}  cxd3 {[%clk 0:02:07]} 28. Qxd3 {[%clk 0:00:44]}  Qb7+ {[%clk 0:01:39]} 29. f3 {[%clk 0:00:43]}  Nf6 {[%clk 0:01:27]} 30. Nxb5 {[%clk 0:00:33]}  Qd5 {[%clk 0:01:09]} 31. Qxd5 {[%clk 0:00:31]}  Nxd5 {[%clk 0:01:09]} 32. Bxg7+ {[%clk 0:00:29]}  Kxg7 {[%clk 0:01:10]} 33. Kf2 {[%clk 0:00:29]}  Rc8 {[%clk 0:01:07]} 34. Re1 {[%clk 0:00:18]}  Rc6 {[%clk 0:01:01]} 35. g4 {[%clk 0:00:16]}  Kf6 {[%clk 0:00:59]} 36. Rd1 {[%clk 0:00:17]}  Ke5 {[%clk 0:00:57]} 37. Rd2 {[%clk 0:00:10]}  Nf4 {[%clk 0:00:54]} 38. Kg3 {[%clk 0:00:10]}  g5 {[%clk 0:00:54]} 39. h4 {[%clk 0:00:06]}  h6 {[%clk 0:00:54]} 40. hxg5 {[%clk 0:00:06]}  hxg5 {[%clk 0:00:55]} 41. a4 {[%clk 0:00:06]}  d5 {[%clk 0:00:55]} 42. Nd4 {[%clk 0:00:05]}  Rc4 {[%clk 0:00:51]} 43. Nf5 {[%clk 0:00:05]}  Rxb4 {[%clk 0:00:50]} 44. Ra2 {[%clk 0:00:03]}  Rb7 {[%clk 0:00:49]} 45. a5 {[%clk 0:00:04]}  Ra7 {[%clk 0:00:49]} 46. a6 {[%clk 0:00:05]}  d4 {[%clk 0:00:49]} 47. Ra5+ {[%clk 0:00:04]}  Nd5 {[%clk 0:00:38]} 48. Ne7 {[%clk 0:00:05]}  Rxe7 {[%clk 0:00:38]} 49. a7 {[%clk 0:00:06]}  Rxa7 {[%clk 0:00:36]} 50. Rxa7 {[%clk 0:00:07]}  d3 {[%clk 0:00:37]} 51. Kf2 {[%clk 0:00:07]}  Kd4 {[%clk 0:00:37]} 52. Rd7 {[%clk 0:00:04]}  Kc4 {[%clk 0:00:36]} 53. Ke1 {[%clk 0:00:02]}  Ne3 {[%clk 0:00:30]} 54. Kd2 {[%clk 0:00:02]}  Nf1+ {[%clk 0:00:30]} 55. Ke1 {[%clk 0:00:01]}  Ne3 {[%clk 0:00:31]} 56. Kd2 {[%clk 0:00:02]}  Nf1+ {[%clk 0:00:31]} 57. Kd1 {[%clk 0:00:03]}  Nh2 {[%clk 0:00:29]} 58. f4 {[%clk 0:00:03]}  gxf4 {[%clk 0:00:29]} 59. g5 {[%clk 0:00:04]}  f3 {[%clk 0:00:30]} 60. g6 {[%clk 0:00:04]}  f2 {[%clk 0:00:30]} 61. Rf7 {[%clk 0:00:05]}  f1=Q+ {[%clk 0:00:30]} 62. Rxf1 {[%clk 0:00:06]}  Nxf1 {[%clk 0:00:31]} 63. g7 {[%clk 0:00:07]}  Ne3+ {[%clk 0:00:32]} 64. Kd2 {[%clk 0:00:06]}  Nf1+ {[%clk 0:00:32]} 65. Ke1 {[%clk 0:00:07]}  d2+ {[%clk 0:00:31]} 66. Ke2 {[%clk 0:00:07]}  Kc3 {[%clk 0:00:29]} 67. g8=Q {[%clk 0:00:07]}  Ne3 {[%clk 0:00:30]} 68. Qg7+ {[%clk 0:00:07]}  Kc2 {[%clk 0:00:30]} 69. Kxe3 {[%clk 0:00:07]}  d1=Q {[%clk 0:00:30]} 70. Qc7+ {[%clk 0:00:08]}  Kb1 {[%clk 0:00:29]} 71. Qb6+ {[%clk 0:00:09]}  Ka1 {[%clk 0:00:28]} 72. Qf6+ {[%clk 0:00:08]}  Kb1 {[%clk 0:00:28]} 73. Qb6+ {[%clk 0:00:08]}  Ka1 {[%clk 0:00:27]} 74. Qa5+ {[%clk 0:00:09]}  Kb1 {[%clk 0:00:27]} 75. Qb4+ {[%clk 0:00:09]}  Ka2 {[%clk 0:00:23]} 76. Qa5+ {[%clk 0:00:08]}  Kb2 {[%clk 0:00:23]} 77. Qe5+ {[%clk 0:00:09]}  Kb1 {[%clk 0:00:23]} 78. Qb5+ {[%clk 0:00:09]}  Ka2 {[%clk 0:00:22]} 79. Qa6+ {[%clk 0:00:09]}  Kb2 {[%clk 0:00:22]} 80. Qb7+ {[%clk 0:00:10]}  Qb3+ {[%clk 0:00:22]} 81. Qxb3+ {[%clk 0:00:09]}  Kxb3 {[%clk 0:00:23]} 1/2-1/2


[Site "https://www.chess.com"]

[Event "Titled Tuesday Blitz May 30 Early 2023"]
[White "Rodriguez Santiago, Jaime"]
[Black "Liu, Xiangyi"]
[WhiteFideId "3100898"]
[BlackFideId "8605718"]
[WhiteElo "2025"]
[BlackElo "2323"]
[Result "0-1"]
[Round "08"]
[TimeControl "180+2"]
[Date "2023.05.30"]
[WhiteClock "0:00:09"]
[BlackClock "0:00:59"]

1. c4 {[%clk 0:03:00]}  e5 {[%clk 0:02:59]} 2. Nc3 {[%clk 0:03:00]}  Nc6 {[%clk 0:02:59]} 3. g3 {[%clk 0:03:00]}  h5 {[%clk 0:02:58]} 4. h3 {[%clk 0:02:59]}  f5 {[%clk 0:02:57]} 5. Bg2 {[%clk 0:02:58]}  Nf6 {[%clk 0:02:57]} 6. d3 {[%clk 0:02:51]}  h4 {[%clk 0:02:57]} 7. gxh4 {[%clk 0:02:48]}  Be7 {[%clk 0:02:52]} 8. Bg5 {[%clk 0:02:45]}  d6 {[%clk 0:02:51]} 9. Nf3 {[%clk 0:02:44]}  Be6 {[%clk 0:02:46]} 10. b3 {[%clk 0:02:24]}  Qd7 {[%clk 0:02:26]} 11. d4 {[%clk 0:02:19]}  e4 {[%clk 0:02:26]} 12. Ng1 {[%clk 0:02:15]}  d5 {[%clk 0:02:23]} 13. c5 {[%clk 0:01:59]}  Nh7 {[%clk 0:02:21]} 14. Bxe7 {[%clk 0:01:56]}  Qxe7 {[%clk 0:02:21]} 15. e3 {[%clk 0:01:56]}  Qxh4 {[%clk 0:02:21]} 16. Nge2 {[%clk 0:01:54]}  Nf6 {[%clk 0:02:13]} 17. a3 {[%clk 0:01:51]}  g5 {[%clk 0:02:06]} 18. b4 {[%clk 0:01:48]}  f4 {[%clk 0:02:06]} 19. Qd2 {[%clk 0:01:33]}  f3 {[%clk 0:02:04]} 20. Bxf3 {[%clk 0:01:28]}  exf3 {[%clk 0:02:01]} 21. Ng3 {[%clk 0:01:27]}  a6 {[%clk 0:01:38]} 22. Qd3 {[%clk 0:01:20]}  Kf7 {[%clk 0:01:37]} 23. Rb1 {[%clk 0:01:16]}  g4 {[%clk 0:01:23]} 24. e4 {[%clk 0:00:56]}  dxe4 {[%clk 0:01:21]} 25. Ngxe4 {[%clk 0:00:53]}  Rae8 {[%clk 0:01:13]} 26. Kd2 {[%clk 0:00:38]}  Qh6+ {[%clk 0:01:11]} 27. Kc2 {[%clk 0:00:36]}  Nxe4 {[%clk 0:01:07]} 28. Nxe4 {[%clk 0:00:35]}  Bf5 {[%clk 0:01:07]} 29. Rbe1 {[%clk 0:00:35]}  Qf4 {[%clk 0:01:01]} 30. Qc4+ {[%clk 0:00:09]}  Kg7 {[%clk 0:00:59]} 0-1


[Site "https://www.chess.com"]

[Event "Titled Tuesday Blitz May 30 Early 2023"]
[White "Barbot, Pierre"]
[Black "Vlassov, Nikolai"]
[WhiteFideId "663727"]
[BlackFideId "4103360"]
[WhiteElo "2431"]
[BlackElo "2324"]
[Result "0-1"]
[Round "08"]
[TimeControl "180+2"]
[Date "2023.05.30"]
[WhiteClock "0:00:00"]
[BlackClock "0:00:49"]

1. d4 {[%clk 0:03:00]}  Nf6 {[%clk 0:02:59]} 2. Nf3 {[%clk 0:03:00]}  e6 {[%clk 0:02:59]} 3. Bf4 {[%clk 0:03:00]}  c5 {[%clk 0:02:59]} 4. e3 {[%clk 0:03:00]}  b6 {[%clk 0:02:59]} 5. Nbd2 {[%clk 0:02:58]}  Bb7 {[%clk 0:02:59]} 6. Bd3 {[%clk 0:02:56]}  Be7 {[%clk 0:02:59]} 7. c3 {[%clk 0:02:56]}  h6 {[%clk 0:02:59]} 8. O-O {[%clk 0:02:50]}  g5 {[%clk 0:02:55]} 9. Bg3 {[%clk 0:02:47]}  g4 {[%clk 0:02:56]} 10. Ne5 {[%clk 0:02:42]}  h5 {[%clk 0:02:55]} 11. f3 {[%clk 0:02:07]}  d6 {[%clk 0:02:54]} 12. Nxf7 {[%clk 0:02:07]}  Kxf7 {[%clk 0:02:53]} 13. fxg4 {[%clk 0:02:08]}  hxg4 {[%clk 0:02:50]} 14. Qxg4 {[%clk 0:02:06]}  Qg8 {[%clk 0:02:47]} 15. Qf4 {[%clk 0:01:47]}  Nd7 {[%clk 0:02:45]} 16. e4 {[%clk 0:01:33]}  Ke8 {[%clk 0:02:37]} 17. Nc4 {[%clk 0:01:05]}  e5 {[%clk 0:02:12]} 18. dxe5 {[%clk 0:01:01]}  dxe5 {[%clk 0:02:08]} 19. Nxe5 {[%clk 0:00:52]}  Nh5 {[%clk 0:01:53]} 20. Qf5 {[%clk 0:00:39]}  Nxe5 {[%clk 0:01:49]} 21. Bxe5 {[%clk 0:00:40]}  c4 {[%clk 0:01:31]} 22. Bxh8 {[%clk 0:00:22]}  Qxh8 {[%clk 0:01:25]} 23. Bxc4 {[%clk 0:00:19]}  Bc5+ {[%clk 0:01:25]} 24. Rf2 {[%clk 0:00:14]}  Bxf2+ {[%clk 0:01:21]} 25. Qxf2 {[%clk 0:00:15]}  Qf6 {[%clk 0:01:13]} 26. Bb5+ {[%clk 0:00:14]}  Ke7 {[%clk 0:01:11]} 27. Qe2 {[%clk 0:00:04]}  Nf4 {[%clk 0:01:09]} 28. Qg4 {[%clk 0:00:04]}  Bc8 {[%clk 0:00:55]} 29. Qf3 {[%clk 0:00:02]}  Nh3+ {[%clk 0:00:50]} 30. Qxh3 {[%clk 0:00:00]}  Bxh3 {[%clk 0:00:49]} 0-1


[Site "https://www.chess.com"]